[Event "WYCC 2018 G14"]
[Site "Halkidiki"]
[Date "2018.10.30"]
[Round "11"]
[White "Zhou, Iris"]
[Black "Lomaia, Diana"]
[Result "1-0"]
[ECO "B90"]
[WhiteElo "1779"]
[BlackElo "1876"]
[Annotator "NA"]
[PlyCount "131"]
[EventDate "2018.10.20"]
[EventType "swiss"]
[EventCountry "GRE"]
[SourceTitle "playchess.com"]
[Source "ChessBase"]
[SourceQuality "1"]
[TimeControl "40/5400+30:1800+30"]

1. e4 {[%emt 0:00:00]} c5 {[%emt 0:00:00]} 2. Nf3 {[%emt 0:00:00]} d6 {[%emt 0:00:00]} 3. d4 {[%emt 0:00:00]} cxd4 {[%emt 0:00:00]} 4. Nxd4 {[%emt 0:00:00]} Nf6 {[%emt 0:00:12]} 5. Nc3 {[%emt 0:00:00]} a6 {[%emt 0:00:26]} 6. a4 {[%emt 0:00:27]} e5 {[%emt 0:02:03]} 7. Nf3 {[%emt 0:00:06]} Be7 {[%emt 0:02:06]} 8. Bc4 {[%emt 0:00:08]} Be6 {[%emt 0:03:29]} 9. Qe2 {[%emt 0:00:18] B90: Sizilianisch (Najdorf-Variante, Abweichungen)} (9. Bb3 h6 10. O-O O-O 11. Nh4 Nc6 12. Nf5 Bxf5 13. exf5 Nd4 14. Nd5 Nxb3 15. cxb3 Rc8 16. Be3 Rc6 {1-0 (49) Carlsen,M (2857)-Grischuk,A (2754) chess.com INT 2016}) 9... Qc8 {[%emt 0:06:21]} 10. Bb3 {[%emt 0:01:49]} O-O {[%emt 0:01:10]} 11. O-O {[%emt 0:01:13]} h6 {[%emt 0:05:51]} 12. Rd1 {[%emt 0:05:36]} Nbd7 $146 {[%emt 0:01:25]} ({Vorgänger:} 12... Bxb3 13. cxb3 Qe6 14. Nh4 Rd8 15. Nf5 Bf8 16. Ne3 Nc6 {½-½ (36) Macieja,B (2617)-Gritsenko,A (2317) Moscow 2008}) 13. Nd2 {[%emt 0:05:52]} Nc5 {[%emt 0:04:06]} 14. Ba2 {[%emt 0:02:09]} Bxa2 {[%emt 0:02:13]} 15. Rxa2 {[%emt 0:00:10]} Qc6 {[%emt 0:11:57]} 16. f3 {[%emt 0:04:21]} Rac8 {[%emt 0:06:23]} 17. Nf1 {[%emt 0:04:37]} Ne6 {[%emt 0:07:26]} 18. Be3 {[%emt 0:10:50]} Nc7 {[%emt 0:10:58]} 19. Bf2 {[%emt 0:12:33]} Nh5 {[%emt 0:02:39]} 20. Ne3 {[%emt 0:04:07]} Nf4 {[%emt 0:01:21]} 21. Qd2 {[%emt 0:02:00]} Rfd8 {[%emt 0:00:37]} 22. a5 {[%emt 0:02:53]} Bg5 {[%emt 0:07:37]} 23. h4 {[%emt 0:01:53]} Bf6 {[%emt 0:04:17]} 24. Raa1 {[%emt 0:08:21]} Nb5 {[%emt 0:05:23]} 25. Nxb5 {[%emt 0:04:55]} axb5 {[%emt 0:08:37]} 26. c3 {[%emt 0:01:52]} Rd7 {[%emt 0:02:05]} 27. Nd5 {[%emt 0:04:51]} Nxd5 {[%emt 0:00:28]} 28. Qxd5 {[%emt 0:00:08]} Bd8 {[%emt 0:03:43]} 29. Qxc6 {[%emt 0:02:35]} bxc6 {[%emt 0:00:25]} 30. a6 {[%emt 0:00:22]} Ra8 {[%emt 0:00:45]} 31. a7 {[%emt 0:00:36]} Be7 {[%emt 0:00:21]} 32. Ra6 {[%emt 0:01:21]} Rc7 {[%emt 0:00:01]} 33. Bb6 {[%emt 0:02:06]} Rb7 {[%emt 0:00:06]} 34. b4 {[%emt 0:01:33]} Kf8 {[%emt 0:00:54]} 35. h5 {[%emt 0:00:42]} Ke8 {[%emt 0:00:19]} 36. Kf2 {[%emt 0:01:25]} Kd7 {[%emt 0:00:42]} 37. g3 {[%emt 0:02:00]} Ke6 {[%emt 0:00:48]} 38. f4 {[%emt 0:03:07]} f6 {[%emt 0:00:34]} 39. Kf3 {[%emt 0:01:28]} Bf8 {[%emt 0:00:45]} 40. Rc1 {[%emt 0:00:00]} Kd7 {[%emt 0:00:00]} 41. fxe5 {[%emt 0:07:24]} fxe5 {[%emt 0:04:10]} 42. Kg4 {[%emt 0:01:14]} Ke6 {[%emt 0:12:56]} 43. c4 {[%emt 0:06:34]} Be7 {[%emt 0:04:13]} 44. cxb5 {[%emt 0:01:20]} cxb5 {[%emt 0:00:01]} 45. Rc7 {[%emt 0:02:07]} Rxc7 {[%emt 0:03:18]} 46. Bxc7 {[%emt 0:00:35]} Kd7 {[%emt 0:02:23]} 47. Bb8 {[%emt 0:00:00]} d5 {[%emt 0:02:50]} 48. exd5 {[%emt 0:00:00]} Bxb4 {[%emt 0:00:02]} 49. Kf5 $18 {[%emt 0:04:07]} Be1 {[%emt 0:03:05]} 50. Bxe5 {[%emt 0:01:34]} Bf2 {[%emt 0:00:40]} 51. Bb8 {[%emt 0:00:22]} b4 {[%emt 0:00:08]} 52. Ke4 {[%emt 0:05:01]} Be1 {[%emt 0:02:29]} 53. Kd3 {[%emt 0:00:27]} Bc3 {[%emt 0:00:05]} 54. Kc4 {[%emt 0:00:38]} Bd2 {[%emt 0:00:37]} 55. Rc6 {[%emt 0:00:59]} Kd8 {[%emt 0:00:42]} 56. Rc7 {[%emt 0:02:02]} Bc3 {[%emt 0:00:10]} 57. g4 {[%emt 0:00:44]} Be5 {[%emt 0:00:55]} 58. Rb7 {[%emt 0:00:13]} Bc3 {[%emt 0:00:13]} 59. Bc7+ {[%emt 0:02:49]} Kc8 {[%emt 0:00:26]} 60. Rb8+ {[%emt 0:00:06]} Kxc7 {[%emt 0:00:05]} 61. Rxa8 {[%emt 0:00:05]} Kb7 {[%emt 0:00:08]} 62. Rf8 {[%emt 0:00:31]} Kxa7 {[%emt 0:00:05]} 63. d6 {[%emt 0:00:09]} Kb7 {[%emt 0:01:24]} 64. d7 {[%emt 0:00:09]} Bf6 {[%emt 0:00:19]} 65. d8=Q {[%emt 0:00:07]} Bxd8 {[%emt 0:00:05]} 66. Rxd8 {[%emt 0:00:05]} 1-0

[Event "WYCC 2018 G14"]
[Site "Halkidiki"]
[Date "2018.10.30"]
[Round "11"]
[White "Gabbani, Sara"]
[Black "Sim, Jia Ru"]
[Result "0-1"]
[ECO "B23"]
[WhiteElo "1764"]
[BlackElo "1979"]
[Annotator "NA"]
[PlyCount "64"]
[EventDate "2018.10.20"]
[EventType "swiss"]
[EventCountry "GRE"]
[SourceTitle "playchess.com"]
[Source "ChessBase"]
[SourceQuality "1"]
[TimeControl "40/5400+30:1800+30"]

1. e4 {[%emt 0:00:00]} c5 {[%emt 0:00:00]} 2. Nc3 {[%emt 0:00:00]} e6 {[%emt 0:00:00]} 3. Nge2 {[%emt 0:00:00]} a6 {[%emt 0:00:00]} 4. a4 {[%emt 0:02:49]} Nc6 {[%emt 0:01:36]} 5. g3 {[%emt 0:00:38]} Nf6 {[%emt 0:02:53]} 6. Bg2 {[%emt 0:01:54]} Be7 {[%emt 0:03:01]} 7. O-O {[%emt 0:03:10]} Qc7 {[%emt 0:03:27]} 8. f4 {[%emt 0:04:26]} d6 {[%emt 0:00:07]} 9. d3 {[%emt 0:01:46]} Rb8 {[%emt 0:01:31]} 10. Bd2 {[%emt 0:06:47]} b6 {[%emt 0:01:55]} 11. h3 {[%emt 0:02:33]} Bb7 {[%emt 0:05:54]} 12. g4 {[%emt 0:03:27]} Nb4 {[%emt 0:08:49]} 13. Ng3 {[%emt 0:05:20]} d5 {[%emt 0:07:55]} 14. e5 Nd7 {[%emt 0:00:19]} 15. Nce2 {[%emt 0:07:39]} Rc8 {[%emt 0:06:41]} 16. Kh2 {[%emt 0:09:08]} O-O $11 {[%emt 0:01:12]} 17. Bxb4 {[%emt 0:05:41]} cxb4 {[%emt 0:00:07]} 18. c3 {[%emt 0:00:27]} a5 19. d4 {[%emt 0:01:26]} Ba6 {[%emt 0:02:26]} 20. Rf2 {[%emt 0:03:01]} b5 {[%emt 0:10:10]} 21. f5 {[%emt 0:04:17]} Bh4 {[%emt 0:14:24]} 22. Qd2 {[%emt 0:10:12]} bxa4 {[%emt 0:00:37]} 23. cxb4 {[%emt 0:01:36]} Qc2 24. Nf4 Qxd2 {[%emt 0:12:47]} 25. Rxd2 {[%emt 0:00:38]} Bg5 {[%emt 0:00:16]} 26. Rf2 {[%emt 0:06:22]} Rc4 {[%emt 0:00:29]} 27. Nfe2 {[%emt 0:06:31]} Rxb4 {[%emt 0:01:18]} 28. Nf1 {[%emt 0:00:32]} Rxb2 {[%emt 0:01:49]} 29. Bf3 {[%emt 0:03:35]} Rc8 {[%emt 0:00:16]} 30. Kg2 Rcc2 31. Nfg3 {[%emt 0:01:14]} Bh4 {[%emt 0:00:46]} 32. Re1 {[%emt 0:01:23]} a3 {[%emt 0:00:42]} 0-1

[Event "WYCC 2018 G14"]
[Site "Halkidiki"]
[Date "2018.10.30"]
[Round "11"]
[White "De Rycke, Tyani"]
[Black "Hernandez Guerra, Luna Yue"]
[Result "0-1"]
[ECO "C01"]
[WhiteElo "1758"]
[BlackElo "1659"]
[Annotator "NA"]
[PlyCount "136"]
[EventDate "2018.10.20"]
[EventType "swiss"]
[EventCountry "GRE"]
[SourceTitle "playchess.com"]
[Source "ChessBase"]
[SourceQuality "1"]
[TimeControl "40/5400+30:1800+30"]

1. e4 {[%emt 0:00:00]} e6 {[%emt 0:00:00]} 2. d4 {[%emt 0:00:00]} d5 {[%emt 0:00:00]} 3. exd5 {[%emt 0:00:00]} exd5 {[%emt 0:00:00]} 4. Nf3 {[%emt 0:00:00]} Bd6 {[%emt 0:00:00]} 5. Bd3 {[%emt 0:00:02]} Nc6 {[%emt 0:00:07]} 6. c3 {[%emt 0:01:39]} Nge7 {[%emt 0:00:15]} 7. h3 {[%emt 0:00:42]} Bf5 {[%emt 0:02:52]} 8. Bxf5 {[%emt 0:02:44]} Nxf5 {[%emt 0:00:11]} 9. O-O {[%emt 0:00:12]} f6 {[%emt 0:05:02]} 10. Re1+ {[%emt 0:01:05]} Nfe7 {[%emt 0:00:39]} 11. Qe2 {[%emt 0:02:34]} Qd7 {[%emt 0:01:14]} 12. b3 {[%emt 0:01:21]} O-O-O {[%emt 0:08:58]} 13. Na3 {[%emt 0:08:41]} g5 {[%emt 0:09:40]} 14. Nb5 Rhg8 15. Qe6 {[%emt 0:08:44]} Qxe6 {[%emt 0:11:24]} 16. Rxe6 {[%emt 0:00:07]} Rg6 {[%emt 0:00:44]} 17. Nxd6+ {[%emt 0:00:05]} Rxd6 {[%emt 0:00:04]} 18. Rxd6 {[%emt 0:00:24]} cxd6 {[%emt 0:00:39]} 19. Ba3 {[%emt 0:03:32]} Kd7 {[%emt 0:03:22]} 20. g4 f5 21. Kg2 {[%emt 0:02:16]} h6 {[%emt 0:03:04]} 22. Kg3 {[%emt 0:03:12]} f4+ {[%emt 0:03:28]} 23. Kg2 Ng8 {[%emt 0:01:52]} 24. Re1 {[%emt 0:04:52]} Nf6 25. Nd2 Rg8 {[%emt 0:02:13]} 26. Kf3 {[%emt 0:29:46]} b5 {[%emt 0:05:02]} 27. Bb2 {[%emt 0:01:14]} a6 {[%emt 0:03:04]} 28. Kg2 {[%emt 0:11:20]} a5 {[%emt 0:02:19]} 29. f3 {[%emt 0:01:46]} a4 {[%emt 0:01:22]} 30. Kf2 {[%emt 0:12:40]} Ra8 {[%emt 0:03:12]} 31. a3 {[%emt 0:01:49]} axb3 {[%emt 0:04:11]} 32. Nxb3 {[%emt 0:00:07]} Na5 {[%emt 0:00:07]} 33. Nxa5 {[%emt 0:00:26]} Rxa5 {[%emt 0:00:00]} 34. h4 {[%emt 0:01:33]} Ra8 {[%emt 0:00:22]} 35. hxg5 {[%emt 0:00:14]} hxg5 {[%emt 0:00:04]} 36. Rh1 {[%emt 0:00:08]} Rg8 {[%emt 0:00:49]} 37. Rh6 {[%emt 0:01:36]} Ke7 {[%emt 0:01:11]} 38. Rh1 {[%emt 0:00:44]} Kf7 {[%emt 0:03:13]} 39. Ke2 {[%emt 0:00:20]} Re8+ {[%emt 0:00:00]} 40. Kd2 {[%emt 0:00:00]} Re3 {[%emt 0:00:00]} 41. Rf1 {[%emt 0:01:30]} Nd7 {[%emt 0:01:49]} 42. Kc2 {[%emt 0:00:25]} Re2+ {[%emt 0:00:45]} 43. Kb3 {[%emt 0:06:19]} Nb6 {[%emt 0:03:41]} 44. Bc1 {[%emt 0:07:58]} Na4 {[%emt 0:01:28]} 45. Rd1 {[%emt 0:04:29]} Ke7 {[%emt 0:01:20]} 46. Rd3 {[%emt 0:02:42]} Kd7 {[%emt 0:01:08]} 47. Rd1 {[%emt 0:00:09]} Rf2 {[%emt 0:00:03]} 48. Rd3 {[%emt 0:01:35]} Kc6 {[%emt 0:01:06]} 49. Bd2 {[%emt 0:06:20]} Nb6 {[%emt 0:00:14]} 50. Bc1 Nc4 51. a4 {[%emt 0:01:39]} Rf1 {[%emt 0:02:30]} 52. axb5+ {[%emt 0:02:31]} Kxb5 {[%emt 0:01:27]} 53. Kc2 {[%emt 0:01:07]} Ka4 54. Bd2 {[%emt 0:00:11]} Ka3 {[%emt 0:02:19]} 55. Bc1+ {[%emt 0:02:05]} Ka2 {[%emt 0:05:10]} 56. Rd1 Rxd1 {[%emt 0:00:03]} 57. Kxd1 {[%emt 0:00:51]} Kb3 {[%emt 0:00:38]} 58. Bd2 {[%emt 0:00:29]} Nb2+ {[%emt 0:00:06]} 59. Ke2 {[%emt 0:00:50]} Kc2 {[%emt 0:00:41]} 60. Be1 Nd1 61. c4 {[%emt 0:01:21]} dxc4 {[%emt 0:01:31]} 62. Bb4 {[%emt 0:00:31]} Nc3+ {[%emt 0:00:35]} 63. Ke1 {[%emt 0:00:10]} Nb5 {[%emt 0:01:20]} 64. d5 {[%emt 0:00:34]} Kd3 {[%emt 0:00:06]} 65. Ba5 {[%emt 0:00:51]} Ke3 {[%emt 0:00:37]} 66. Bd8 {[%emt 0:00:22]} Kxf3 {[%emt 0:00:04]} 67. Bxg5 {[%emt 0:00:17]} Kxg4 {[%emt 0:00:04]} 68. Bh6 {[%emt 0:00:37]} Kf3 {[%emt 0:00:35]} 0-1

[Event "WYCC 2018 G14"]
[Site "Halkidiki"]
[Date "2018.10.30"]
[Round "11"]
[White "Vuong, Quynh Anh"]
[Black "Nguyen, Thien Ngan"]
[Result "1-0"]
[ECO "D34"]
[WhiteElo "1747"]
[BlackElo "1888"]
[Annotator "NA"]
[PlyCount "151"]
[EventDate "2018.10.20"]
[EventType "swiss"]
[EventCountry "GRE"]
[SourceTitle "playchess.com"]
[Source "ChessBase"]
[SourceQuality "1"]
[TimeControl "40/5400+30:1800+30"]

1. d4 {[%emt 0:00:00]} d5 {[%emt 0:00:00]} 2. c4 {[%emt 0:00:00]} e6 {[%emt 0:00:00]} 3. Nf3 {[%emt 0:00:00]} c5 {[%emt 0:00:00]} 4. g3 {[%emt 0:00:01]} Nc6 {[%emt 0:00:00]} 5. cxd5 {[%emt 0:00:15]} exd5 {[%emt 0:00:04]} 6. Bg2 {[%emt 0:00:09]} Nf6 {[%emt 0:00:18]} 7. Nc3 {[%emt 0:00:06]} Be7 {[%emt 0:00:16]} 8. O-O {[%emt 0:10:07]} O-O {[%emt 0:00:16]} 9. Bg5 {[%emt 0:00:30]} cxd4 {[%emt 0:04:17]} 10. Nxd4 {[%emt 0:00:20]} Be6 {[%emt 0:00:08]} 11. Nc2 {[%emt 0:06:34] D34: Tarrasch Defence: 6 g3 Nf6 7 Bg2 Be7} (11. Rc1 h6 12. Be3 Qd7 13. Qa4 Rfc8 14. Rfd1 Ng4 15. Nxc6 bxc6 16. Bd4 Nf6 17. e4 Bg4 18. Rd2 Nxe4 19. Nxe4 dxe4 {½-½ (33) Georgiev,K (2662)-Berg,E (2583) Gibraltar 2008}) 11... Qb6 $146 {[%emt 0:09:47]} ({Predecessor:} 11... Qa5 12. Nd4 Nxd4 13. Qxd4 Rac8 14. Rfd1 Rfd8 15. Rac1 {½-½ (15) Achang,A-Masserey,Y Aalborg 1991}) 12. Na4 {[%emt 0:19:12]} Qa6 {[%emt 0:05:09]} 13. b3 {[%emt 0:02:12]} Rad8 {[%emt 0:03:19]} 14. Nd4 {[%emt 0:05:55]} Nxd4 {[%emt 0:08:50]} 15. Qxd4 {[%emt 0:02:09]} h6 {[%emt 0:00:29]} 16. Be3 {[%emt 0:03:04]} b6 {[%emt 0:01:06]} 17. Qb2 {[%emt 0:01:25]} Bg4 {[%emt 0:09:46]} 18. Bd4 {[%emt 0:01:15]} Rc8 {[%emt 0:05:50]} 19. e3 {[%emt 0:03:09]} b5 {[%emt 0:05:36]} 20. Nc3 {[%emt 0:00:21]} Rfd8 {[%emt 0:02:10]} 21. b4 {[%emt 0:01:58]} Rc4 {[%emt 0:06:46]} 22. a3 {[%emt 0:00:06]} Qb7 {[%emt 0:00:38]} 23. Rfc1 {[%emt 0:00:13]} a6 {[%emt 0:03:14]} 24. Rc2 {[%emt 0:04:09]} Rdc8 {[%emt 0:06:45]} 25. Rd2 {[%emt 0:00:53]} Be6 {[%emt 0:03:26]} 26. Rad1 {[%emt 0:01:32]} Qc7 {[%emt 0:02:06]} 27. Nxd5 {[%emt 0:04:09]} Nxd5 {[%emt 0:06:32]} 28. Bxd5 {[%emt 0:00:50]} Bxd5 {[%emt 0:01:43]} 29. Be5 {[%emt 0:00:10]} Bf6 {[%emt 0:02:55]} 30. Rxd5 {[%emt 0:03:29]} Bxe5 {[%emt 0:01:51]} 31. Rxe5 {[%emt 0:02:30]} Rc3 {[%emt 0:03:55]} 32. Red5 {[%emt 0:00:27]} Qc4 {[%emt 0:00:59]} 33. R5d4 {[%emt 0:02:52]} Qc6 {[%emt 0:01:37]} 34. R4d3 {[%emt 0:03:18]} Rc2 {[%emt 0:01:53]} 35. Qb1 {[%emt 0:00:11]} Qf6 {[%emt 0:03:27]} 36. Rd8+ {[%emt 0:00:37]} Rxd8 {[%emt 0:00:44]} 37. Rxd8+ {[%emt 0:00:07]} Qxd8 {[%emt 0:00:02]} 38. Qxc2 {[%emt 0:00:01]} Qd5 {[%emt 0:01:30]} 39. e4 {[%emt 0:00:51]} Qd6 {[%emt 0:00:50]} 40. Kg2 {[%emt 0:00:00]} Qd4 {[%emt 0:00:00]} 41. Qc8+ {[%emt 0:01:39]} Kh7 {[%emt 0:03:27]} 42. Qf5+ {[%emt 0:01:43]} Kg8 {[%emt 0:00:44]} 43. Qd5 {[%emt 0:00:05]} Qf6 {[%emt 0:00:57]} 44. h4 {[%emt 0:02:57]} Qg6 {[%emt 0:01:21]} 45. Kh3 {[%emt 0:04:40]} Qb6 {[%emt 0:00:54]} 46. Kg2 {[%emt 0:00:27]} (46. Qa8+ $16 Kh7 47. Kg2) 46... Qf6 {[%emt 0:00:10]} 47. Qc5 {[%emt 0:00:26]} Qe6 {[%emt 0:00:51]} 48. Kf3 {[%emt 0:01:12]} Qb3+ {[%emt 0:01:09]} 49. Qe3 {[%emt 0:00:05]} Qc4 {[%emt 0:01:33]} 50. Kg2 {[%emt 0:00:24]} Kh8 {[%emt 0:01:12]} 51. e5 {[%emt 0:00:58]} Qd5+ {[%emt 0:00:25]} 52. Qf3 {[%emt 0:01:06]} Qe6 {[%emt 0:03:27]} 53. Qa8+ {[%emt 0:01:19]} Kh7 {[%emt 0:00:09]} 54. Qe4+ {[%emt 0:00:04]} Kg8 {[%emt 0:00:36]} 55. f4 {[%emt 0:00:15]} Qa2+ {[%emt 0:00:38]} 56. Kh3 {[%emt 0:00:04]} Qxa3 {[%emt 0:00:31]} 57. f5 {[%emt 0:00:35]} Qa1 {[%emt 0:05:57]} 58. e6 {[%emt 0:01:13]} Qf1+ {[%emt 0:11:20]} 59. Kg4 {[%emt 0:00:04]} Qd1+ {[%emt 0:00:18]} 60. Kf4 {[%emt 0:00:01]} Qd6+ {[%emt 0:00:15]} 61. Kf3 {[%emt 0:00:58]} Qe7 $2 {[%emt 0:05:22]} (61... Qd1+ $11 62. Kg2 Qd2+ 63. Kh3 fxe6) 62. Ke3 {[%emt 0:03:20]} f6 {[%emt 0:00:50]} 63. Qd4 $16 {[%emt 0:00:24]} (63. Kf3 $18 {is more deadly.}) 63... Qc7 {[%emt 0:00:33]} 64. Kd2 {[%emt 0:00:34]} Kf8 {[%emt 0:00:34]} 65. Qc5+ {[%emt 0:01:11]} Qxc5 {[%emt 0:00:21]} 66. bxc5 {[%emt 0:00:03]} Ke7 {[%emt 0:00:13]} 67. h5 {[%emt 0:00:09]} a5 {[%emt 0:00:30]} 68. Kc3 {[%emt 0:00:03]} Kd8 {[%emt 0:00:44]} 69. c6 {[%emt 0:00:04]} b4+ {[%emt 0:00:43]} 70. Kb3 {[%emt 0:00:02]} Kc7 {[%emt 0:00:31]} 71. e7 {[%emt 0:00:04]} Kxc6 {[%emt 0:00:06]} 72. e8=Q+ {[%emt 0:00:05]} Kd5 {[%emt 0:00:05]} 73. g4 {[%emt 0:00:44]} Kc5 {[%emt 0:00:10]} 74. Qe7+ {[%emt 0:00:06]} Kb5 {[%emt 0:00:04]} 75. Qd7+ {[%emt 0:00:05]} Kc5 {[%emt 0:00:05]} 76. Qxg7 {[%emt 0:00:04]} 1-0

[Event "WYCC 2018 G14"]
[Site "Halkidiki"]
[Date "2018.10.30"]
[Round "11"]
[White "Dimitrijevic, Andjela"]
[Black "Alimova, Sevinch"]
[Result "0-1"]
[ECO "B40"]
[WhiteElo "1744"]
[BlackElo "1596"]
[Annotator "NA"]
[PlyCount "104"]
[EventDate "2018.10.20"]
[EventType "swiss"]
[EventCountry "GRE"]
[SourceTitle "playchess.com"]
[Source "ChessBase"]
[SourceQuality "1"]
[TimeControl "40/5400+30:1800+30"]

1. e4 {[%emt 0:00:00]} c5 {[%emt 0:00:00]} 2. Nf3 {[%emt 0:00:00]} e6 {[%emt 0:00:00]} 3. d3 {[%emt 0:00:00]} d5 {[%emt 0:00:24]} 4. Qe2 {[%emt 0:01:43]} dxe4 {[%emt 0:03:04]} 5. dxe4 {[%emt 0:01:42]} Nc6 {[%emt 0:00:47]} 6. g3 {[%emt 0:05:37]} Nf6 {[%emt 0:03:07]} 7. e5 {[%emt 0:07:22]} Nd7 {[%emt 0:04:34]} 8. Bg2 {[%emt 0:03:53]} Qc7 {[%emt 0:00:56]} 9. Bf4 {[%emt 0:01:32]} h6 {[%emt 0:00:54]} 10. h4 {[%emt 0:01:22]} a6 {[%emt 0:00:53]} 11. c4 {[%emt 0:15:48]} b6 {[%emt 0:04:27]} 12. O-O {[%emt 0:03:44]} Bb7 {[%emt 0:00:50]} 13. Nc3 {[%emt 0:01:00]} Be7 {[%emt 0:04:25]} 14. Nd5 {[%emt 0:12:30]} Qd8 {[%emt 0:01:29]} 15. Nxe7 {[%emt 0:03:14]} Nxe7 {[%emt 0:02:12]} 16. Rad1 {[%emt 0:02:09]} Qc7 {[%emt 0:03:38]} 17. Rfe1 {[%emt 0:06:29]} O-O-O {[%emt 0:00:57]} 18. Nd2 {[%emt 0:06:47]} Bxg2 {[%emt 0:08:55]} 19. Kxg2 {[%emt 0:00:19]} Nf5 {[%emt 0:00:42]} 20. Ne4 {[%emt 0:05:56]} Qc6 {[%emt 0:06:03]} 21. Kg1 {[%emt 0:05:18]} g5 {[%emt 0:07:29]} 22. hxg5 {[%emt 0:04:37]} hxg5 {[%emt 0:00:06]} 23. Bxg5 {[%emt 0:02:57]} Rdg8 {[%emt 0:00:25]} 24. f4 {[%emt 0:03:02]} Kb8 {[%emt 0:10:32]} 25. Qg2 {[%emt 0:02:05]} Nd4 {[%emt 0:04:17]} 26. Rd3 {[%emt 0:01:25]} Rh7 {[%emt 0:02:53]} 27. Nf6 {[%emt 0:02:04]} Qxg2+ {[%emt 0:04:18]} 28. Kxg2 {[%emt 0:00:03]} Nxf6 {[%emt 0:00:15]} 29. Bxf6 {[%emt 0:00:30]} Kc7 {[%emt 0:01:39]} 30. Rh1 {[%emt 0:00:53]} Rxh1 {[%emt 0:00:19]} 31. Kxh1 {[%emt 0:00:04]} Ne2 {[%emt 0:00:16]} 32. Kh2 {[%emt 0:00:55]} Nd4 {[%emt 0:00:28]} 33. a3 {[%emt 0:00:46]} a5 {[%emt 0:00:34]} 34. Bg5 {[%emt 0:00:31]} a4 {[%emt 0:01:10]} 35. Kg2 {[%emt 0:00:28]} Kc6 {[%emt 0:00:49]} 36. Rd1 {[%emt 0:00:35]} Rh8 {[%emt 0:01:02]} 37. Bf6 {[%emt 0:00:26]} Rg8 {[%emt 0:01:03]} 38. Rh1 {[%emt 0:00:18]} Nf5 {[%emt 0:02:15]} 39. Bg5 {[%emt 0:00:33]} Ne3+ {[%emt 0:00:27]} 40. Kf3 {[%emt 0:00:00]} Nxc4 {[%emt 0:00:00]} 41. Rh2 {[%emt 0:07:57]} Nxe5+ {[%emt 0:03:01]} 42. Kg2 {[%emt 0:08:34]} Nc4 {[%emt 0:00:54]} 43. Bf6 {[%emt 0:01:01]} Ne3+ {[%emt 0:03:29]} 44. Kf3 {[%emt 0:00:36]} Ng4 {[%emt 0:00:10]} 45. Rh8 {[%emt 0:00:42]} Nxf6 {[%emt 0:00:05]} 46. Rxg8 {[%emt 0:00:06]} Nxg8 {[%emt 0:00:05]} 47. g4 {[%emt 0:00:13]} b5 {[%emt 0:00:10]} 48. Ke2 {[%emt 0:00:08]} b4 {[%emt 0:00:16]} 49. Kd3 {[%emt 0:00:08]} Kd5 {[%emt 0:00:07]} 50. g5 {[%emt 0:00:10]} c4+ {[%emt 0:00:09]} 51. Kc2 {[%emt 0:00:13]} bxa3 {[%emt 0:00:07]} 52. bxa3 {[%emt 0:00:04]} Kd4 {[%emt 0:00:05]} 0-1

[Event "WYCC 2018 G14"]
[Site "Halkidiki"]
[Date "2018.10.30"]
[Round "11"]
[White "Zaritovskaja, Margarita"]
[Black "Tamrazyan, Gohar"]
[Result "1/2-1/2"]
[ECO "B32"]
[WhiteElo "1731"]
[BlackElo "1824"]
[Annotator "NA"]
[PlyCount "76"]
[EventDate "2018.10.20"]
[EventType "swiss"]
[EventCountry "GRE"]
[SourceTitle "playchess.com"]
[Source "ChessBase"]
[SourceQuality "1"]
[TimeControl "40/5400+30:1800+30"]

1. e4 {[%emt 0:00:00]} c5 {[%emt 0:00:00]} 2. Nf3 {[%emt 0:00:00]} Nc6 {[%emt 0:00:00]} 3. d4 {[%emt 0:00:00]} cxd4 {[%emt 0:00:00]} 4. Nxd4 {[%emt 0:00:00]} e5 {[%emt 0:00:00]} 5. Nb5 {[%emt 0:00:00]} d6 {[%emt 0:00:00]} 6. N1c3 {[%emt 0:01:01]} a6 {[%emt 0:00:00]} 7. Na3 b5 8. Nd5 {[%emt 0:00:20]} Nge7 {[%emt 0:00:00]} 9. c4 {[%emt 0:00:16]} Nd4 {[%emt 0:00:00]} 10. Bd3 {[%emt 0:00:24]} Nxd5 {[%emt 0:00:16]} 11. cxd5 {[%emt 0:00:16]} Be7 {[%emt 0:00:11]} 12. O-O {[%emt 0:00:33]} O-O {[%emt 0:00:21]} 13. Be3 {[%emt 0:00:30]} Bd7 {[%emt 0:01:46]} 14. Qd2 {[%emt 0:01:18]} f5 {[%emt 0:06:27]} 15. f4 {[%emt 0:02:16]} fxe4 {[%emt 0:04:02]} 16. Bxe4 {[%emt 0:01:56]} Bf5 {[%emt 0:06:26]} 17. Bxf5 {[%emt 0:12:22]} Nxf5 {[%emt 0:00:09]} 18. Bf2 {[%emt 0:18:14]} exf4 {[%emt 0:03:34]} 19. Qxf4 {[%emt 0:01:57]} Bg5 {[%emt 0:01:30]} 20. Qe4 {[%emt 0:01:39]} Qe8 {[%emt 0:08:32]} 21. Qd3 {[%emt 0:11:12]} Be3 {[%emt 0:09:13]} 22. Nc2 {[%emt 0:02:16]} Bxf2+ {[%emt 0:02:09]} 23. Rxf2 {[%emt 0:00:07]} Qg6 {[%emt 0:07:41]} 24. Raf1 {[%emt 0:09:40]} Nh4 {[%emt 0:00:12]} 25. Qd4 {[%emt 0:04:28]} Nf3+ {[%emt 0:06:03]} 26. Rxf3 {[%emt 0:00:10]} Rxf3 {[%emt 0:00:04]} 27. Rxf3 {[%emt 0:00:08]} Qxc2 {[%emt 0:00:07]} 28. Rf2 {[%emt 0:20:21]} Qb1+ {[%emt 0:09:42]} 29. Rf1 {[%emt 0:00:36]} Qc2 {[%emt 0:12:26]} 30. Kh1 {[%emt 0:05:01]} Re8 {[%emt 0:10:36]} 31. Qa7 {[%emt 0:00:34]} Qg6 {[%emt 0:02:07]} 32. h3 {[%emt 0:03:37]} h6 {[%emt 0:00:20]} 33. Qf2 {[%emt 0:02:05]} Kh7 {[%emt 0:02:01]} 34. Re1 {[%emt 0:01:18]} Rxe1+ {[%emt 0:02:08]} 35. Qxe1 {[%emt 0:00:01]} Qf5 {[%emt 0:01:23]} 36. Qd2 {[%emt 0:00:42]} Qg5 {[%emt 0:03:29]} 37. Qd3+ {[%emt 0:00:57]} Kh8 {[%emt 0:01:38]} 38. Qd4 {[%emt 0:00:29]} Qf5 {[%emt 0:01:46]} 1/2-1/2